bitfinex-derivatives/quotes_BTCF0:USTF0_20251230
["timestamp","ask_amount","ask_price","bid_price","bid_amount"]
[1767118560769,0.0113237,88397.0,88378.0,0.153]
[1767118560972,0.02524351,88396.0,88378.0,0.153]
[1767118561170,0.02524948,88395.0,88378.0,0.164326]
[1767118561380,0.0113237,88397.0,88378.0,0.164326]
[1767118561570,0.02525312,88396.0,88378.0,0.153]
[1767118561882,0.02525312,88395.0,88378.0,0.153]
[1767118562071,0.0113245,88391.0,88378.0,0.153]
[1767118562271,0.0113241,88394.0,88378.0,0.153]
[1767118562870,0.0113236,88398.0,88379.0,0.0113258]
[1767118563071,0.0113238,88396.0,88378.0,0.153]
[1767118563273,0.0113241,88394.0,88378.0,0.153]
[1767118563876,0.0113236,88397.0,88378.0,0.153]
[1767118564188,0.0113239,88395.0,88378.0,0.153]
[1767118565272,0.0113247,88389.0,88378.0,0.05676]
[1767118565474,0.0113244,88392.0,88378.0,0.05676]
[1767118566181,0.09624,88398.0,88378.0,0.05676]
[1767118566380,0.0252706,88397.0,88378.0,0.05676]
[1767118566677,0.0252706,88396.0,88378.0,0.05676]
[1767118566878,0.09624,88398.0,88378.0,0.05676]
[1767118566879,0.0113242,88393.0,88378.0,0.05676]
[1767118567579,0.09624,88398.0,88378.0,0.05676]
[1767118567783,0.0113238,88396.0,88378.0,0.068086]
[1767118568295,0.02527298,88395.0,88378.0,0.068086]
[1767118568487,0.0113238,88396.0,88380.0,0.16922363]
[1767118568985,0.0113241,88394.0,88380.0,0.16922363]
[1767118569186,0.09624,88398.0,88378.0,0.05676]
[1767118569384,0.0113245,88391.0,88378.0,0.05676]
[1767118570388,0.0113241,88394.0,88378.0,0.05676]
[1767118570778,0.0113241,88394.0,88380.0,0.16922363]
[1767118571288,0.0113243,88392.0,88380.0,0.16922363]
[1767118572086,0.09624,88398.0,88380.0,0.16922363]
[1767118572285,0.0113246,88390.0,88378.0,0.05676]
[1767118574085,0.0113242,88393.0,88378.0,0.05676]
[1767118574785,0.0113242,88393.0,88380.0,0.16922363]
[1767118576700,0.0113244,88391.0,88380.0,0.16922363]
[1767118577795,0.0113244,88391.0,88378.0,0.05676]
[1767118580100,0.0113244,88391.0,88380.0,0.16922363]
[1767118581299,0.0113224,88407.0,88380.0,0.16922363]
[1767118581494,0.0113228,88404.0,88397.0,0.16922363]
[1767118581692,0.02524905,88403.0,88392.0,0.00016976]
[1767118581900,0.02524905,88402.0,88392.0,0.00016976]
[1767118582099,0.02524905,88401.0,88392.0,0.00016976]
[1767118582402,0.0113228,88404.0,88392.0,0.00016976]
[1767118582699,0.02524788,88403.0,88392.0,0.00016976]
[1767118582899,0.02524788,88402.0,88392.0,0.00016976]
[1767118583100,0.0113228,88404.0,88392.0,0.00016976]
[1767118583308,0.00987444,88415.0,88392.0,0.00016976]
[1767118583309,0.00987444,88415.0,88394.0,0.16922363]
[1767118583495,0.0113227,88405.0,88393.0,0.05676]
[1767118583693,0.0113229,88403.0,88393.0,0.05676]
[1767118585097,0.153,88412.0,88393.0,0.05676]
[1767118585098,0.0113224,88407.0,88393.0,0.05676]
[1767118591600,0.153,88412.0,88397.0,0.16922363]
[1767118591805,0.153,88412.0,88400.0,0.16922363]
[1767118593206,0.011322,88410.0,88400.0,0.16922363]
[1767118593606,0.05672,88414.0,88400.0,0.16922363]
[1767118594411,0.011322,88410.0,88400.0,0.16922363]
[1767118595403,0.02510709,88409.0,88400.0,0.16922363]
[1767118595607,0.02510709,88408.0,88400.0,0.16922363]
[1767118595808,0.02510709,88407.0,88400.0,0.16922363]
[1767118596008,0.011322,88410.0,88400.0,0.16922363]
[1767118596207,0.02511647,88409.0,88400.0,0.16922363]
[1767118596407,0.02511647,88408.0,88400.0,0.16922363]
[1767118596603,0.02511647,88407.0,88400.0,0.16922363]
[1767118596803,0.011322,88410.0,88400.0,0.16922363]
[1767118597009,0.02511463,88409.0,88400.0,0.16922363]
[1767118597312,0.02511463,88408.0,88400.0,0.16922363]
[1767118597611,0.02511463,88407.0,88400.0,0.16922363]
[1767118597908,0.011322,88410.0,88400.0,0.16922363]
[1767118598109,0.02511308,88409.0,88400.0,0.16922363]
[1767118598313,0.02511308,88408.0,88400.0,0.16922363]
[1767118598506,0.011322,88410.0,88400.0,0.16922363]
[1767118598706,0.02511076,88409.0,88400.0,0.16922363]
[1767118598912,0.02511076,88408.0,88400.0,0.16922363]
[1767118599211,0.011322,88410.0,88400.0,0.16922363]
[1767118599408,0.02510975,88409.0,88400.0,0.16922363]
[1767118599610,0.02510975,88408.0,88400.0,0.16922363]
[1767118599810,0.011322,88410.0,88400.0,0.16922363]
[1767118600010,0.02510729,88409.0,88400.0,0.16922363]
[1767118600205,0.02510729,88408.0,88400.0,0.16922363]
[1767118600405,0.011322,88410.0,88400.0,0.16922363]
[1767118600606,0.02510719,88409.0,88400.0,0.16922363]
[1767118600904,0.02510719,88408.0,88400.0,0.16922363]
[1767118601106,0.011322,88410.0,88400.0,0.16922363]
[1767118601301,0.02510621,88409.0,88400.0,0.16922363]
[1767118601503,0.02510621,88408.0,88400.0,0.16922363]
[1767118601703,0.011322,88410.0,88400.0,0.16922363]
[1767118601912,0.02520298,88409.0,88400.0,0.16922363]
[1767118602102,0.02520298,88408.0,88400.0,0.16922363]
[1767118602303,0.011322,88410.0,88400.0,0.16922363]
[1767118602503,0.02520218,88409.0,88400.0,0.16922363]
[1767118602712,0.02520218,88408.0,88400.0,0.16922363]
[1767118602913,0.011322,88410.0,88400.0,0.16922363]
[1767118603115,0.02520224,88409.0,88400.0,0.16922363]
[1767118603314,0.02520224,88408.0,88400.0,0.16922363]
[1767118603616,0.011322,88410.0,88400.0,0.16922363]
[1767118603818,0.02520309,88409.0,88400.0,0.16922363]
[1767118604017,0.02520309,88408.0,88400.0,0.16922363]
[1767118604317,0.02520784,88407.0,88398.0,0.22594363]
[1767118604517,0.0113223,88408.0,88398.0,0.22594363]
[1767118605219,0.0113223,88408.0,88398.0,0.05672]
[1767118605414,0.0113223,88408.0,88398.0,0.22594363]
[1767118608416,0.05672,88414.0,88398.0,0.22594363]
[1767118608716,0.16922363,88410.0,88392.0,0.00016976]
[1767118608919,0.0113244,88392.0,88384.0,0.05672]
[1767118609114,0.0113247,88390.0,88384.0,0.05672]
[1767118609808,0.05672,88401.0,88384.0,0.05672]
[1767118609809,0.0113242,88393.0,88384.0,0.05672]
[1767118613519,0.01149356,88396.0,88384.0,0.05672]
[1767118613823,0.0113241,88394.0,88384.0,0.05672]
[1767118621130,0.0113243,88392.0,88384.0,0.05672]
[1767118621521,0.16922363,88390.0,88378.0,0.09640976]
[1767118621726,0.16922363,88390.0,88360.0,0.16922363]
[1767118621727,0.22594363,88390.0,88363.0,0.0113279]
[1767118621926,0.22594363,88390.0,88364.0,0.15296]
[1767118622130,0.0113253,88385.0,88368.0,0.0113273]
[1767118622626,0.0113248,88388.0,88370.0,0.011327]
[1767118622831,0.0113248,88388.0,88371.0,0.05672]
[1767118623826,0.0113251,88386.0,88371.0,0.05672]
[1767118626128,0.0113248,88389.0,88371.0,0.05672]
[1767118626334,0.22594363,88390.0,88371.0,0.05672]
[1767118626725,0.0113256,88383.0,88371.0,0.05672]
[1767118629631,0.05672,88390.0,88371.0,0.05672]
[1767118629837,0.0113252,88386.0,88371.0,0.05672]
[1767118632242,0.0113247,88389.0,88371.0,0.0680469]
[1767118632636,0.011325,88387.0,88371.0,0.0680469]
[1767118634537,0.011325,88387.0,88371.0,0.05672]
[1767118636843,0.011325,88387.0,88371.0,0.0680469]
[1767118637640,0.05672,88390.0,88371.0,0.0680469]
[1767118639340,0.0113247,88389.0,88371.0,0.0680469]
[1767118642340,0.011325,88387.0,88371.0,0.05672]
[1767118643749,0.0113249,88388.0,88371.0,0.0680468]
[1767118643948,0.05672,88390.0,88371.0,0.05672]
[1767118644549,0.02523245,88389.0,88371.0,0.05672]
[1767118644749,0.05672,88390.0,88371.0,0.05672]
[1767118645050,0.02523302,88389.0,88371.0,0.05672]
[1767118645242,0.0113251,88386.0,88371.0,0.05672]
[1767118647436,0.0113241,88394.0,88371.0,0.05672]
[1767118647637,0.15296,88409.0,88371.0,0.05672]
[1767118647840,0.09624,88408.0,88384.0,0.0113253]
[1767118648150,0.09624,88408.0,88385.0,0.05672]
[1767118648542,0.0113206,88421.0,88385.0,0.05672]
[1767118648744,0.0113206,88421.0,88394.0,0.00016976]
[1767118648745,0.00016976,88412.0,88394.0,0.00016976]
[1767118650342,0.0113219,88411.0,88394.0,0.00016976]
[1767118650549,0.15296,88410.0,88394.0,0.00016976]
[1767118651048,0.0113221,88409.0,88394.0,0.00016976]
[1767118654056,0.01149146,88412.0,88394.0,0.00016976]
[1767118654855,0.0113221,88410.0,88394.0,0.00016976]
[1767118655155,0.0113223,88408.0,88394.0,0.00016976]
[1767118659460,0.0113226,88406.0,88394.0,0.00016976]
[1767118659761,0.0113228,88404.0,88394.0,0.00016976]
[1767118659950,0.0113223,88408.0,88394.0,0.00016976]
[1767118660351,0.0113226,88406.0,88394.0,0.00016976]
[1767118661960,0.0113222,88409.0,88394.0,0.00016976]
[1767118663159,0.0113219,88411.0,88394.0,6e-08]
[1767118663354,0.19423352,88410.0,88375.0,0.15296]
[1767118663559,0.02496712,88409.0,88375.0,0.15296]
[1767118663764,0.0113224,88407.0,88375.0,0.15296]
[1767118663957,0.0113248,88388.0,88375.0,0.15296]
[1767118664157,0.0113244,88391.0,88375.0,0.15296]
[1767118664358,0.00016976,88392.0,88375.0,0.15296]
[1767118664665,0.0113248,88389.0,88375.0,0.15296]
[1767118665065,0.01149406,88392.0,88375.0,0.15296]
[1767118665873,0.0113246,88390.0,88375.0,0.15296]
[1767118666065,0.0113249,88388.0,88375.0,0.15296]
[1767118666366,0.00016976,88392.0,88375.0,0.15296]
[1767118666367,0.0113253,88385.0,88375.0,0.15296]
[1767118666570,0.0113253,88385.0,88374.0,0.00016976]
[1767118667471,0.0113248,88388.0,88374.0,0.00016976]
[1767118668669,0.0113256,88382.0,88374.0,6e-08]
[1767118668866,0.0113259,88380.0,88374.0,6e-08]
[1767118669572,0.0113253,88385.0,88374.0,6e-08]
[1767118670773,0.0113263,88377.0,88374.0,6e-08]
[1767118671069,0.0113282,88362.0,88348.0,0.15296]
[1767118671375,0.0113292,88354.0,88346.0,0.15296]
[1767118671672,0.0113292,88354.0,88342.0,0.05672]
[1767118671874,0.0113286,88359.0,88342.0,0.05672]
[1767118672171,0.01149836,88359.0,88342.0,0.05688976]
[1767118674376,0.01149836,88359.0,88343.0,0.0113305]
[1767118674569,0.00016976,88359.0,88343.0,0.0113305]
[1767118681270,0.0113287,88358.0,88342.0,0.05688976]
[1767118681477,0.0113287,88358.0,88342.0,0.06822046]
[1767118686182,0.0113239,88395.0,88342.0,0.05688976]
[1767118686481,0.0113255,88383.0,88367.0,0.0113275]
[1767118686683,0.09628,88389.0,88366.0,0.05676]
[1767118686980,0.24072,88407.0,88360.0,0.1692664]
[1767118686981,0.011323,88402.0,88382.0,0.0113255]
[1767118687177,0.011323,88402.0,88367.0,0.15304]
[1767118687178,0.09644976,88401.0,88383.0,0.00016976]
[1767118688078,0.011324,88395.0,88383.0,0.00016976]
[1767118688284,0.011325,88387.0,88377.0,0.05676]
[1767118688883,0.0113244,88391.0,88371.0,0.0113269]
[1767118689269,0.0113244,88391.0,88372.0,0.00016976]
[1767118692379,0.0113244,88391.0,88373.0,0.0113267]
[1767118692575,0.0113251,88386.0,88372.0,0.00016976]
[1767118692884,0.16925738,88390.0,88372.0,0.00016976]
[1767118693672,0.0113257,88382.0,88372.0,0.00016976]
[1767118693876,0.16925738,88390.0,88372.0,0.00016976]
[1767118694084,0.09628,88389.0,88372.0,0.00016976]
[1767118694288,0.09628,88389.0,88366.0,0.05672]
[1767118694480,0.0113262,88378.0,88366.0,0.05672]
[1767118694679,0.0113262,88378.0,88363.0,0.05672]
[1767118694985,0.0113257,88381.0,88363.0,0.05672]
[1767118695284,0.01149546,88381.0,88364.0,0.0113278]
[1767118696383,0.00016976,88381.0,88364.0,0.0113278]
[1767118696583,0.00016976,88381.0,88370.0,0.16925738]
[1767118702488,0.09628,88389.0,88370.0,0.16925738]
[1767118703499,0.00016976,88388.0,88370.0,0.16925738]
[1767118703698,0.0113254,88384.0,88370.0,0.16925738]
[1767118704893,0.0113254,88384.0,88370.0,0.18058448]
[1767118705292,0.0113257,88381.0,88370.0,0.16925738]
[1767118707900,0.0113254,88384.0,88370.0,0.16925738]
[1767118715905,0.00016976,88388.0,88374.0,0.16925738]
[1767118716199,0.06821456,88388.0,88370.0,0.22597738]
[1767118717205,0.06821456,88388.0,88371.0,0.0113269]
[1767118721107,0.0113251,88386.0,88370.0,0.22597738]
[1767118721908,0.0113259,88380.0,88370.0,0.05672]
[1767118722206,0.0113259,88380.0,88370.0,0.22597738]
[1767118722402,0.05688976,88388.0,88370.0,0.22597738]
[1767118722403,0.0113261,88378.0,88370.0,0.05672]
[1767118722893,0.0113258,88381.0,88370.0,0.05672]
[1767118723096,0.05688976,88388.0,88370.0,0.05672]
[1767118723296,0.02505738,88387.0,88370.0,0.05672]
[1767118723493,0.02505738,88386.0,88370.0,0.05672]
[1767118723699,0.05688976,88388.0,88370.0,0.05672]
[1767118723899,0.02505736,88387.0,88370.0,0.22597738]
[1767118724208,0.02505736,88386.0,88370.0,0.22597738]
[1767118724406,0.05688976,88388.0,88370.0,0.05672]
[1767118724708,0.0250575,88387.0,88370.0,0.05672]
[1767118725008,0.0250575,88386.0,88370.0,0.05672]
[1767118725198,0.05688976,88388.0,88370.0,0.05672]
[1767118725398,0.02505795,88387.0,88370.0,0.05672]
[1767118725601,0.02505795,88386.0,88370.0,0.05672]
[1767118725799,0.05688976,88388.0,88370.0,0.05672]
[1767118726000,0.0113254,88384.0,88370.0,0.05672]
[1767118726902,0.0113254,88384.0,88370.0,0.23730438]
[1767118728314,0.0113256,88382.0,88370.0,0.22597738]
[1767118728500,0.05688976,88388.0,88370.0,0.22597738]
[1767118728706,0.02505822,88387.0,88370.0,0.22597738]
[1767118728907,0.02505822,88386.0,88370.0,0.22597738]
[1767118729108,0.05688976,88388.0,88370.0,0.22597738]
[1767118729308,0.0113255,88383.0,88370.0,0.22597738]
[1767118729612,0.011326,88379.0,88370.0,0.22597738]
[1767118732608,0.0113256,88382.0,88370.0,0.22597738]
[1767118735319,0.05688976,88388.0,88370.0,0.22597738]
[1767118735617,0.02505802,88387.0,88370.0,0.22597738]
[1767118735818,0.02505802,88386.0,88370.0,0.22597738]
[1767118736022,0.02505802,88385.0,88370.0,0.22597738]
[1767118736322,0.03638342,88384.0,88370.0,0.22597738]
[1767118736522,0.02505802,88383.0,88370.0,0.22597738]
[1767118737516,0.05688976,88388.0,88370.0,0.22597738]
[1767118737724,0.02505816,88387.0,88370.0,0.22597738]
[1767118738023,0.02505816,88386.0,88370.0,0.22597738]
[1767118738225,0.02505816,88385.0,88370.0,0.22597738]
[1767118738523,0.02505816,88384.0,88370.0,0.22597738]
[1767118738716,0.0113256,88382.0,88370.0,0.22597738]
[1767118740124,0.05688976,88388.0,88370.0,0.16925738]
[1767118740320,0.02505782,88387.0,88371.0,0.05672]
[1767118740520,0.02505782,88386.0,88371.0,0.05672]
[1767118740722,0.02505782,88385.0,88371.0,0.05672]
[1767118740926,0.0113257,88381.0,88371.0,0.05672]
[1767118742423,0.09624,88393.0,88371.0,0.05672]
[1767118742625,0.15621162,88402.0,88383.0,0.16925738]
[1767118742924,0.0113235,88399.0,88390.0,0.16925738]
[1767118743120,0.16925738,88400.0,88383.0,0.05672]
[1767118743321,0.0113234,88399.0,88382.0,0.05672]
[1767118743524,0.0113251,88386.0,88382.0,6e-08]
[1767118743925,0.0113247,88389.0,88382.0,6e-08]
[1767118745229,0.0113247,88389.0,88380.0,0.05672]
[1767118746833,0.05672,88396.0,88380.0,0.05672]
[1767118746834,0.0113243,88392.0,88380.0,0.05672]
[1767118747823,0.0113243,88392.0,88379.0,0.16925738]
[1767118748031,0.0113243,88392.0,88380.0,0.05672]
[1767118748634,0.0113243,88392.0,88379.0,0.16925738]
[1767118748825,0.0113243,88392.0,88380.0,0.05672]
[1767118749636,0.0113249,88388.0,88380.0,0.22597738]
[1767118749835,0.0113249,88388.0,88374.0,0.09624]
[1767118749836,0.05672,88387.0,88370.0,0.05672]
[1767118750031,0.16925738,88380.0,88364.0,0.15296]
[1767118750229,0.09624,88386.0,88364.0,0.15296]
[1767118750726,0.0113264,88376.0,88364.0,0.15296]
[1767118750926,0.0113264,88376.0,88364.0,0.05672]
[1767118753226,0.01149576,88379.0,88364.0,0.05672]
[1767118757639,0.01149576,88379.0,88363.0,0.0113279]
[1767118757839,0.01149576,88379.0,88364.0,0.05672]
[1767118758329,0.00016976,88379.0,88365.0,0.0113277]
[1767118759329,0.0113253,88385.0,88367.0,0.0113274]
[1767118759730,0.0113253,88385.0,88369.0,0.0113272]
[1767118760037,0.15296,88386.0,88369.0,0.0113272]
[1767118760239,0.00016976,88386.0,88372.0,0.0113268]
[1767118760429,0.0113245,88391.0,88374.0,0.0113266]
[1767118760629,0.05672,88395.0,88374.0,0.0113266]
[1767118760829,0.0248859,88394.0,88373.0,0.05672]
[1767118761037,0.0248859,88393.0,88373.0,0.05672]
[1767118761236,0.0248859,88392.0,88373.0,0.05672]
[1767118761432,0.0248859,88391.0,88373.0,0.05672]
[1767118761636,0.0248859,88391.0,88374.0,0.00016976]
[1767118761637,0.00016976,88391.0,88374.0,0.00016976]
[1767118762236,0.0113247,88389.0,88374.0,0.00016976]
[1767118764143,0.0113263,88377.0,88374.0,6e-08]
[1767118764330,0.15296,88383.0,88356.0,0.09624]
[1767118764640,0.0113285,88360.0,88344.0,0.0113304]
[1767118764835,0.0113292,88354.0,88345.0,0.05672]
[1767118765037,0.0113288,88357.0,88345.0,0.15296]
[1767118765536,0.01149816,88360.0,88345.0,0.15296]
[1767118765742,0.05672,88369.0,88354.0,0.0113291]
[1767118766038,0.05672,88369.0,88345.0,0.15296]
[1767118766544,0.0113274,88368.0,88351.0,0.0113295]
[1767118766742,0.00016976,88368.0,88351.0,0.0113295]
[1767118768138,0.00016976,88368.0,88353.0,0.0113293]
[1767118768339,0.05672,88369.0,88353.0,0.0113293]
[1767118768539,0.09624,88370.0,88353.0,0.0113293]
[1767118769341,0.09640976,88370.0,88353.0,0.0113293]
[1767118770433,0.00016976,88370.0,88353.0,0.0113293]
[1767118770633,0.00016976,88370.0,88352.0,0.05672]
[1767118770933,0.05672,88374.0,88360.0,0.0113283]
[1767118771129,0.0113262,88378.0,88360.0,0.0113283]
[1767118771330,0.0113262,88378.0,88355.0,0.09628]
[1767118771331,0.09628,88384.0,88361.0,0.05672]
[1767118771534,0.0113255,88383.0,88365.0,0.0113277]
[1767118771731,0.1643254,88384.0,88365.0,0.00016976]
[1767118773445,0.1643254,88384.0,88365.0,0.01149736]
[1767118775144,0.0113256,88382.0,88365.0,0.01149736]
[1767118775345,0.0113256,88382.0,88365.0,0.00016976]
[1767118775648,0.153,88384.0,88366.0,0.0113276]
[1767118777647,0.0113255,88383.0,88366.0,0.0113276]
[1767118778553,0.0113255,88383.0,88365.0,0.00016976]
[1767118778737,0.153,88384.0,88366.0,0.0113276]
[1767118779938,0.0113255,88383.0,88365.0,0.00016976]
[1767118780155,0.0113255,88383.0,88365.0,0.09644976]
[1767118781138,0.05672,88386.0,88365.0,0.10777746]
[1767118781139,0.0680451,88386.0,88365.0,0.10777746]
[1767118785049,0.05672,88386.0,88365.0,0.09644976]
[1767118785240,0.24068,88409.0,88370.0,0.16929133]
[1767118785241,0.05672,88394.0,88370.0,0.16929133]
[1767118785441,0.0248344,88393.0,88376.0,0.0113262]
[1767118785739,0.0248344,88393.0,88371.0,0.05672]
[1767118785740,0.0113232,88401.0,88382.0,0.0113255]
[1767118785950,0.0113232,88401.0,88383.0,0.05688976]
[1767118788649,0.05672,88404.0,88383.0,0.05688976]
[1767118788954,0.0113248,88389.0,88383.0,0.00016976]
[1767118789541,0.05672,88396.0,88375.0,0.05672]
[1767118789854,0.0113251,88386.0,88375.0,0.05672]
[1767118790148,0.05672,88396.0,88375.0,0.05672]
[1767118790350,0.0113246,88390.0,88375.0,0.05672]
[1767118792642,0.00016976,88391.0,88375.0,0.05672]
[1767118793950,0.0563633,88400.0,88383.0,0.0113253]
[1767118794150,0.05672,88400.0,88383.0,0.0113253]
[1767118794954,0.0113236,88398.0,88374.0,0.00016976]
[1767118795150,0.22601133,88400.0,88374.0,0.00016976]
[1767118795151,0.011325,88387.0,88374.0,0.00016976]
[1767118796447,0.0113237,88397.0,88374.0,0.00016976]
[1767118796643,0.0113252,88385.0,88374.0,0.00016976]
[1767118797456,0.05672,88400.0,88374.0,0.00016976]
[1767118797658,0.0113242,88393.0,88376.0,0.0113262]
[1767118798157,0.05672,88400.0,88374.0,0.00016976]
[1767118798347,0.02472214,88399.0,88374.0,0.00016976]
[1767118798549,0.05672,88400.0,88374.0,0.00016976]
[1767118798755,0.02472215,88399.0,88374.0,0.00016976]
[1767118798957,0.02472215,88398.0,88374.0,0.00016976]
[1767118799158,0.0113246,88390.0,88374.0,0.00016976]
[1767118799554,0.05672,88400.0,88374.0,0.00016976]
[1767118799748,0.011324,88395.0,88378.0,0.011326]
[1767118800056,0.011324,88395.0,88379.0,0.15296]
[1767118800558,0.0113229,88403.0,88379.0,0.15296]
[1767118800755,0.0113244,88392.0,88374.0,0.00016976]
[1767118800963,0.0113244,88392.0,88375.0,0.15296]
[1767118802458,0.0113227,88405.0,88375.0,0.15296]
[1767118802459,0.0113239,88395.0,88376.0,0.0113263]
[1767118802859,0.0113231,88402.0,88383.0,0.0113253]
[1767118803060,0.1075623,88408.0,88384.0,0.05672]
[1767118803256,0.07129222,88421.0,88384.0,0.05672]
[1767118803257,0.0247223,88407.0,88391.0,0.0113244]
[1767118803463,0.05672,88415.0,88393.0,0.011324]
[1767118803762,0.0113216,88413.0,88394.0,0.05672]
[1767118804060,0.0113216,88413.0,88395.0,0.09624]
[1767118805654,0.0113216,88413.0,88395.0,0.1075639]
[1767118806455,0.1075612,88416.0,88395.0,0.1075639]
[1767118806764,0.1075612,88416.0,88390.0,6e-08]
[1767118806765,0.0113238,88397.0,88390.0,6e-08]
[1767118806952,0.0113248,88388.0,88366.0,0.08092872]
[1767118807156,0.05672,88410.0,88363.0,0.08092872]
[1767118807157,0.0113258,88381.0,88363.0,0.08092872]
[1767118807465,0.0113233,88400.0,88364.0,0.153]
[1767118807466,0.0113253,88385.0,88364.0,0.153]
[1767118807660,0.0113253,88385.0,88365.0,0.09624]
[1767118807962,0.00016976,88384.0,88366.0,0.00016976]
[1767118808163,0.00016976,88384.0,88367.0,0.0113275]
[1767118808473,0.00016976,88384.0,88370.0,0.0113271]
[1767118812764,0.00016976,88384.0,88366.0,0.01149726]
[1767118814163,0.00016976,88384.0,88369.0,0.0113272]
[1767118814370,0.00016976,88384.0,88370.0,0.09624]
[1767118814570,0.00016976,88384.0,88371.0,0.0113269]
[1767118814769,0.00016976,88384.0,88373.0,0.0113266]
[1767118816165,0.16926836,88390.0,88373.0,0.0113266]
[1767118816471,0.0113243,88392.0,88373.0,0.0113266]
[1767118816864,0.16926836,88390.0,88370.0,0.27683546]
[1767118817264,0.0113247,88389.0,88372.0,0.0113267]
[1767118817673,0.16926836,88390.0,88372.0,0.0113267]
[1767118818768,0.16926836,88390.0,88369.0,0.0113272]
[1767118818974,0.0113257,88381.0,88370.0,0.153]
[1767118819176,0.0113254,88384.0,88370.0,0.153]
[1767118820071,0.0113249,88388.0,88370.0,0.153]
[1767118820676,0.0113249,88388.0,88371.0,0.011327]
[1767118821881,0.16926836,88390.0,88371.0,0.011327]
[1767118823081,0.0113247,88389.0,88371.0,0.011327]
[1767118824482,0.0113274,88368.0,88366.0,6e-08]
[1767118824778,0.0113274,88368.0,88352.0,0.05672]
[1767118824984,0.16926836,88370.0,88352.0,0.05672]
[1767118825683,0.16943812,88370.0,88352.0,0.05688976]
[1767118826182,0.00016976,88370.0,88352.0,0.05688976]
[1767118826886,0.16943812,88370.0,88352.0,0.05688976]
[1767118827277,0.00016976,88370.0,88352.0,0.05688976]
[1767118827785,0.16943812,88370.0,88352.0,0.05688976]
[1767118829091,0.00016976,88370.0,88352.0,0.05688976]
[1767118832789,0.16943812,88370.0,88352.0,0.05688976]
[1767118835893,0.00016976,88370.0,88352.0,0.05688976]
[1767118837981,0.0113265,88375.0,88353.0,0.0113292]
[1767118838185,0.0113261,88378.0,88360.0,0.16926836]
[1767118838499,0.0113261,88378.0,88361.0,0.15304]
[1767118839998,0.0113264,88376.0,88361.0,0.15304]
[1767118845699,0.18059426,88380.0,88361.0,0.1643682]
[1767118846004,0.16926836,88390.0,88363.0,0.0113279]
[1767118846198,0.0113258,88381.0,88363.0,0.0113279]
[1767118847088,0.0113261,88379.0,88361.0,0.15304]
[1767118847695,0.0113267,88374.0,88361.0,0.15304]
[1767118849500,0.18059546,88371.0,88362.0,0.05676]
[1767118849702,0.0113271,88371.0,88362.0,0.05676]
[1767118852502,0.0113267,88374.0,88362.0,0.05676]
[1767118858512,0.0113269,88372.0,88362.0,0.05676]
[1767118860612,0.0113277,88366.0,88363.0,0.05672]
[1767118860916,0.011326,88379.0,88363.0,0.05672]
[1767118861122,0.0113272,88370.0,88363.0,0.05672]
[1767118861317,0.0113274,88368.0,88363.0,0.05672]
[1767118861523,0.0113274,88368.0,88364.0,0.05672]
[1767118862125,0.011326,88379.0,88364.0,0.05672]
[1767118862325,0.0113271,88371.0,88352.0,0.01149906]
[1767118862623,0.0113271,88371.0,88353.0,0.153]
[1767118862818,0.0113271,88371.0,88354.0,0.0113291]
[1767118863219,0.16926836,88380.0,88354.0,0.0113291]
[1767118863419,0.02658569,88379.0,88354.0,0.0113291]
[1767118863614,0.02658569,88378.0,88354.0,0.0113291]
[1767118863923,0.02658569,88377.0,88360.0,0.16926836]
[1767118864227,0.0113269,88372.0,88361.0,0.05672]
[1767118864921,0.0113272,88370.0,88361.0,0.05672]
[1767118867022,0.16926836,88380.0,88361.0,0.05672]
[1767118867222,0.02658778,88379.0,88361.0,0.05672]
[1767118867423,0.02658778,88378.0,88361.0,0.05672]
[1767118867727,0.02658778,88377.0,88361.0,0.05672]
[1767118867930,0.16926836,88380.0,88361.0,0.05672]
[1767118868124,0.0113264,88376.0,88361.0,0.0680482]
[1767118868426,0.26554836,88390.0,88361.0,0.0680482]
[1767118868727,0.0265876,88389.0,88361.0,0.0680482]
[1767118868927,0.0113264,88376.0,88361.0,0.05672]
[1767118869124,0.0113267,88374.0,88361.0,0.05672]
[1767118870530,0.0113262,88377.0,88361.0,0.05672]
[1767118872828,0.0113262,88377.0,88362.0,0.09628]
[1767118874831,0.02637139,88376.0,88362.0,0.09628]
[1767118875131,0.0113262,88377.0,88362.0,0.09628]
[1767118875320,0.02637142,88376.0,88362.0,0.09628]
[1767118875516,0.0113262,88377.0,88362.0,0.09628]
[1767118875729,0.02637117,88376.0,88362.0,0.09628]
[1767118876030,0.0113262,88377.0,88362.0,0.09628]
[1767118876231,0.02637117,88376.0,88362.0,0.09628]
[1767118876432,0.0113262,88377.0,88362.0,0.09628]
[1767118876628,0.02637093,88376.0,88362.0,0.09628]
[1767118876829,0.0113262,88377.0,88362.0,0.09628]
[1767118877030,0.02637094,88376.0,88362.0,0.09628]
[1767118877232,0.0113262,88377.0,88362.0,0.09628]
[1767118877529,0.0113265,88375.0,88362.0,0.09628]
[1767118881338,0.0113262,88378.0,88362.0,0.09628]
[1767118881521,0.02637177,88377.0,88362.0,0.09628]
[1767118881722,0.02637177,88376.0,88362.0,0.09628]
[1767118881925,0.02637177,88375.0,88362.0,0.09628]
[1767118882124,0.0113262,88378.0,88362.0,0.09628]
[1767118882328,1.69e-06,88377.0,88365.0,0.0113277]
[1767118882533,0.09628,88390.0,88366.0,0.05672]
[1767118882734,0.09628,88390.0,88367.0,0.0113275]
[1767118882935,0.0113254,88384.0,88367.0,0.0113275]
[1767118883132,0.0113254,88384.0,88366.0,0.05672]
[1767118883729,0.0113254,88384.0,88366.0,0.0680476]
[1767118885434,0.011325,88387.0,88368.0,0.0113273]
[1767118885637,0.011325,88387.0,88366.0,0.05672]
[1767118885638,0.011325,88387.0,88370.0,0.0113271]
[1767118886232,0.09628,88390.0,88369.0,0.00016976]
[1767118886528,0.0113252,88386.0,88369.0,0.00016976]
[1767118887736,0.0113254,88383.0,88369.0,0.00016976]
[1767118888039,0.0113251,88386.0,88369.0,0.00016976]
[1767118889735,0.0113251,88386.0,88369.0,0.01149696]
[1767118893331,0.0113251,88386.0,88371.0,0.0113269]
[1767118893627,0.0113251,88386.0,88372.0,0.09628]
[1767118895139,0.0113248,88389.0,88372.0,0.09628]
[1767118895440,0.02621324,88388.0,88372.0,0.09628]
[1767118895643,0.02621324,88387.0,88372.0,0.09628]
[1767118895944,0.02621324,88386.0,88372.0,0.09628]
[1767118896141,0.0113238,88396.0,88372.0,0.09628]
[1767118896442,0.02621344,88395.0,88372.0,0.09628]
[1767118896643,0.02621344,88394.0,88372.0,0.09628]
[1767118896939,0.02621344,88393.0,88373.0,0.05672]